Cogmind - Beta 16.1 *** ADVENTURER MODE // 2026.02.22 @ 23:27:50 Player: Ms. V3-11A Result: Destroyed by QP-QMQ(R) with Subdweller Machine Gun Performance ------------- Evolutions (0) 0 Regions Visited (2) 400 Robots Destroyed (24) 120 Value Destroyed (765) 765 Prototype IDs (5) 100 Alien Tech Used (0) 0 Bonus (0) 0 TOTAL SCORE: 1385 Bonus ------- None Cogmind --------- Core Integrity 0/250 Matter 250/300 Energy 160/160 System Corruption 0% Temperature Cool (0) Movement Walking (260) Ox2 Location -10/Subcaves Parts ------- > --- POWER (1) -------- Light Nuclear Core > --- PROPULSION (2) --- Aluminum Leg > --- UTILITY (2) ------ Large Storage Unit Seismic Detector > --- WEAPON (2) ------- EM Pulse Gun > --- INVENTORY (15) --- Light Treads Light Treads Improved Heat Sink Large Storage Unit Scrap Shield EM Pulse Gun Subdweller Laser Mining Claw Peak State ------------ > --- POWER ------------ Light Angular Momentum Engine > --- PROPULSION ------- Aluminum Leg Carbon-fiber Leg > --- UTILITY ---------- Large Storage Unit > --- WEAPON ----------- EM Pulse Gun Assault Rifle > --- INVENTORY -------- Light Nuclear Core Light Treads Light Treads Aluminum Leg Aluminum Leg Improved Heat Sink Large Storage Unit Seismic Detector Scrap Shield EM Pulse Gun EM Pulse Gun EM Pulse Gun Mining Claw [Rating: 14] Favorites ----------- Power Ion Engine Engine Ion Engine Power Core Light Nuclear Core Propulsion Aluminum Leg Treads Light Treads Leg Aluminum Leg Utility Large Storage Unit Device Seismic Detector Storage Large Storage Unit Protection Light Armor Plating Weapon EM Pulse Gun Energy Gun EM Pulse Gun Ballistic Gun Assault Rifle Slashing Weapon Mining Claw Build | -11 -10 -10 ------- Run | Yrd Mat Sub Slots Evolved . | . . . Power . | . . . Propulsion . | . . . Utility . | . . . Weapon . | . . . Parts Attached 20 | . 9 11 Power 4 | . 1 3 Engine 3 | . 1 2 Core 1 | . . 1 Reactor . | . . . Propulsion 6 | . 2 4 Treads 1 | . . 1 Leg 5 | . 2 3 Wheel . | . . . Hover . | . . . Flight . | . . . Utility 3 | . 3 . Device 1 | . 1 . Storage 1 | . 1 . Processor . | . . . Hackware . | . . . Protection 1 | . 1 . Artifact . | . . . Weapon 7 | . 3 4 Energy Gun 4 | . 1 3 Energy Cannon . | . . . Ballistic Gun 2 | . 2 . Ballistic Cannon . | . . . Launcher . | . . . Special Weapon . | . . . Impact Weapon . | . . . Slashing Weapon 1 | . . 1 Piercing Weapon . | . . . Special Melee Weapon . | . . . Unidentified Prototypes . | . . . Parts Lost 11 | . . 11 Power 2 | . . 2 Propulsion 4 | . . 4 Utility 1 | . . 1 Weapon 4 | . . 4 Highest Loss Streak 4 | . . 4 To Critical Strikes . | . . . Average Backups 9 | 5 8 10 Power . | 1 1 . Propulsion 3 | 3 3 3 Utility 2 | . 1 3 Weapon 2 | 1 2 3 Tool/Special . | . . . Unused Backups 12 | . 7 5 Power 3 | . 3 . Propulsion . | . . . Utility 5 | . 2 3 Weapon 4 | . 2 2 Tool/Special . | . . . Average Slot Usage (%) 97 | . 97 98 Engine 10 | . 14 7 Core 3 | . . 6 Leg 27 | . 27 27 Device 6 | . 1 12 Storage 14 | . 14 14 Protection 5 | . 10 1 Energy Gun 18 | . 12 23 Ballistic Gun 8 | . 14 3 Peak Build Rating 14 | 6 8 14 Average Rating 10 | 6 7 12 On Entrance 6 | 6 6 8 Avg Prop Armor Cover (%) . | . . . Naked Turns . | . . . Heaviest Build 34 | 12 32 34 Greatest Support 25 | 20 20 25 Greatest Overweight (x) 3 | . 3 1 Average Overweight (x) . | . . 1 Largest Inventory Capacity 15 | 8 15 15 Average Capacity 13 | 8 11 15 Most Carried 15 | 5 12 15 Average Carried 10 | 4 8 11 Final Capacity 15 | 8 15 15 Final Carried 12 | 4 12 9 Class Distribution -------------------- 100% | Mutant Dominant Class ---------------- Mutant | -10/Materials Mutant | -10/Subcaves Resources | -11 -10 -10 ----------- Run | Yrd Mat Sub Matter Collected 548 | 200 173 175 Remotely . | . . . Salvage Created 931 | . 413 518 Parts 62 | . 29 33 Haulers Intercepted . | . . . Recyclers Shooed . | . . . Parts Field Recycled . | . . . Retrieved Matter . | . . . Parts Self-Destructed 2 | . . 2 Prevented . | . . . Parts Restored . | . . . Kills | -11 -10 -10 ------- Run | Yrd Mat Sub Combat Hostiles Destroyed 21 | . 10 11 Guns 21 | . 10 11 Classes Destroyed 6 | . 4 2 Builder 1 | . 1 . Watcher 2 | . 2 . Swarmer 3 | . 3 . Grunt 8 | . 7 1 Artisan 2 | . . 2 Subdweller 10 | . . 10 Best Kill Streak 6 | . 6 3 Combat Bots Only 4 | . 4 3 Max Kills in Single Turn 2 | . 2 1 Gunslinging . | . . . Exploded . | . . . Melee . | . . . Uniques/NPCs Destroyed . | . . . Combat | -11 -10 -10 -------- Run | Yrd Mat Sub Hostile Shots Fired 137 | . 46 91 Missed 35 | . 12 23 Hits 102 | . 34 68 Projectile 102 | . 34 68 AOE 1 | . . 1 Critical Strikes 1 | . . 1 Part Disruptions 1 | . 1 . Damage Taken 1422 | . 307 1115 Core 252 | . 34 218 Absorbed by Shields . | . . . Ignored by Resistances 414 | . 95 319 Regen/Repaired (Parts) 245 | . 245 . Core Remaining (%) 100 | 100 . . Volleys Fired 89 | . 33 56 Largest 2 | . 2 2 Hottest 80 | . 60 80 Shots Fired 169 | . 66 103 Gun 169 | . 66 103 Cannon . | . . . Launcher . | . . . Special . | . . . Kinetic 72 | . 41 31 Thermal . | . . . Explosive . | . . . Electromagnetic 97 | . 25 72 Robot Hit Streak 19 | . 10 19 Robot Miss Streak 3 | . 3 2 Penetration Max . | . . . Secondary Targets 2 | . . 2 Max Gunslinging Chain 1 | . . 1 Shots Hit Robots 139 | . 50 89 Core Hits 52 | . 23 29 Critical Kills . | . . . Critical Parts Destroyed . | . . . Critical Strikes 3 | . . 3 Corrupt 3 | . . 3 Melee Attacks 4 | . . 4 Impact . | . . . Slashing 4 | . . 4 Piercing . | . . . Sneak Attacks . | . . . Combat Hostiles . | . . . Follow-up Attacks . | . . . Damage Inflicted 1697 | . 641 1056 Guns 1561 | . 618 943 Cannons . | . . . Explosions 113 | . . 113 Melee . | . . . Ramming 23 | . 23 . Kinetic 694 | . 366 328 Thermal 113 | . . 113 Explosive . | . . . Electromagnetic 867 | . 252 615 Impact . | . . . Slashing . | . . . Piercing . | . . . Highest Corruption . | . . . Average Corruption . | . . . Corruption Purged . | . . . Corruption Blocked . | . . . Overload Shots . | . . . Overflow Damage . | . . . Projectiles . | . . . Explosions . | . . . Melee . | . . . Knockbacks . | . . . Impact . | . . . Kinetic . | . . . Secondary . | . . . Self-Inflicted Damage . | . . . Shots . | . . . Rammed . | . . . Targets Rammed 5 | . 5 . Kicked 5 | . 5 . Crushed . | . . . Highest Temperature 90 | . 90 . Average Temperature 33 | . 33 . Received Heat Transfer 414 | . 186 228 Siege Activations . | . . . Martial Activations . | . . . Shielding Activations . | . . . Robots Disrupted . | . . . Combat Hostiles . | . . . Robots Corrupted . | . . . Combat Hostiles . | . . . Parts Fried 2 | . . 2 Impact Corruptions . | . . . Robots Melted . | . . . Combat Hostiles . | . . . Parts Melted . | . . . Heat Transferred 100 | . . 100 Parts Sabotaged . | . . . Parts Stolen . | . . . Parts Stripped . | . . . Power Chain Reactions 2 | . . 2 Alert | -11 -10 -10 ------- Run | Yrd Mat Sub Maximum Alert Level . | . . . Low Security (%) 100 | 100 100 . Level 1 . | . . . Level 2 . | . . . Level 3 . | . . . Level 4 . | . . . Level 5 . | . . . High Security . | . . . Max Security . | . . . Peak Influence 105 | . 105 . Initial . | . . . Average 14 | . 14 . Influence Increases 307 | . 287 20 Destroy 0b10 Robot/C 220 | . 200 20 Destroy 0b10 Robot/NC 15 | . 15 . Destroy Leader 54 | . 54 . Successful Hack 17 | . 17 . Destroy Structure 1 | . 1 . Influence Decreases 307 | . 287 20 Time Decay 307 | . 287 20 Squads Dispatched 2 | . 2 . Investigation 2 | . 2 . Extermination . | . . . Reinforcement . | . . . Assault . | . . . Garrison . | . . . Intercept . | . . . Searches Triggered . | . . . Construction Impeded . | . . . Haulers Reinforced . | . . . Active Scanning Responses . | . . . Cargo Convoy Interrupts . | . . . Stealth | -11 -10 -10 --------- Run | Yrd Mat Sub Distress Signals 2 | . 2 . Communications Jammed . | . . . Distress Signals . | . . . Times Spotted 30 | . 15 15 Peak Tracking Total 6 | . 5 6 Tactical Retreats . | . . . Traps | -11 -10 -10 ------- Run | Yrd Mat Sub Traps Triggered 2 | . 2 . Indirectly . | . . . Trap Hack Attempts . | . . . Triggered . | . . . Disarmed . | . . . Reprogrammed . | . . . Reused . | . . . Traps Extracted . | . . . Installed . | . . . Triggered . | . . . Machines | -11 -10 -10 ---------- Run | Yrd Mat Sub Machines Disabled . | . . . Max in Single Turn . | . . . Machines Repaired . | . . . Machines Dismantled . | . . . Machines Sabotaged . | . . . Overloaded Fab Kills . | . . . Hacking | -11 -10 -10 --------- Run | Yrd Mat Sub Machines Accessed 10 | . 10 . Terminals 7 | . 7 . Fabricators . | . . . Repair Stations 1 | . 1 . Recycling Units 2 | . 2 . Scanalyzers . | . . . Garrison Access . | . . . Total Hacks 40 | . 40 . Successful 31 | . 31 . Failed 9 | . 9 . Catastrophic . | . . . Database Lockouts . | . . . Manual 7 | . 7 . Terminals 22 | . 22 . Fabricators . | . . . Repair Stations 15 | . 15 . Recycling Units 3 | . 3 . Scanalyzers . | . . . Garrison Access . | . . . Terminal Hacks 11 | . 11 . Prototype ID Bank 4 | . 4 . Branch Access Points 1 | . 1 . Terminal Index 1 | . 1 . Locate Traps 2 | . 2 . Hauler Manifests 1 | . 1 . Zone Layout 2 | . 2 . Fabricator Hacks . | . . . Repair Station Hacks 14 | . 14 . Scan Component 7 | . 7 . Repair 7 | . 7 . Recycling Unit Hacks 2 | . 2 . Retrieve Components 2 | . 2 . Scanalyzer . | . . . Garrison Access Hacks . | . . . Unauthorized Hacks 4 | . 4 . Terminals 4 | . 4 . Botnet 3 | . 3 . Search 1 | . 1 . Fabricators . | . . . Repair Stations . | . . . Recycling Units . | . . . Scanalyzers . | . . . Garrison Access . | . . . Data Cores Recovered . | . . . Used . | . . . Hacking Detections 6 | . 6 . Full Trace Events . | . . . Feedback Events . | . . . Feedback Blocked . | . . . Robot Schematics Acquired . | . . . Robots Built . | . . . Authchips . | . . . Time . | . . . Total Robot Build Rating . | . . . Part Schematics Acquired . | . . . Parts Built . | . . . Authchips . | . . . Time . | . . . Total Part Build Rating . | . . . Part Studies Acquired . | . . . Parts Repaired 7 | . 7 . Time 209 | . 209 . Parts Recycled . | . . . Recycled Matter . | . . . Retrieved Matter . | . . . Retrieved Components 13 | . 13 . Parts Scanalyzed . | . . . Part Schematics Acquired . | . . . Parts Damaged . | . . . Bothacking | -11 -10 -10 ------------ Run | Yrd Mat Sub Used RIF Installer . | . . . Robots Hacked . | . . . Non-combat . | . . . Combat . | . . . Robot Hacks Applied . | . . . Relay Couplers Released . | . . . Fabnet Peak Effective % . | . . . Robots Rewired . | . . . Allies Hacked . | . . . Hacks Repelled . | . . . Allies | -11 -10 -10 -------- Run | Yrd Mat Sub Total Allies . | . . . Largest Group . | . . . Highest-Rated Group . | . . . Highest-Rated Ally . | . . . Total Orders . | . . . Ally Attacks . | . . . Total Damage . | . . . Kills . | . . . Allies Corrupted . | . . . Allies Melted . | . . . Intel | -11 -10 -10 ------- Run | Yrd Mat Sub Active Infowar (turns) 1785 | . 136 1649 Seismic 1785 | . 136 1649 Robot Analysis Total . | . . . Derelict Logs Recovered 1 | . . 1 Drone Launches . | . . . Drone Recoveries . | . . . Exploration | -11 -10 -10 ------------- Run | Yrd Mat Sub Turns Passed 3607 | 2 1746 1859 Spaces Moved 1849 | 1 983 865 Core . | . . . Treads . | . . . Legs 1849 | 1 983 865 Wheels . | . . . Hover . | . . . Flight . | . . . Fastest Speed 120 | 120 120 190 Average Speed 164 | 120 142 190 Slowest Speed 330 | 120 330 190 Overloaded Moves . | . . . Propulsion Burnouts . | . . . Robots Hopped . | . . . Potential Cave-ins . | . . . Cave-ins Triggered . | . . . Exploration Rate (%) 49 | 2 99 48 Regions Visited 2 Branch Regions 1 Pre-discovered Areas 2 | . . 2 Known Exits Taken . | . . . Unknown Exits Taken 2 | 1 1 . Scrap Searched . | . . . Spaces Dug . | . . . Terrain Destroyed 6 | . . 6 Melee . | . . . Projectile . | . . . AOE 6 | . . 6 Terrain Rammed . | . . . Walls Destroyed . | . . . Machines Disabled . | . . . Actions | -11 -10 -10 --------- Run | Yrd Mat Sub Total 2231 | 2 1263 966 Wait 235 | . 214 21 Move 1847 | . 982 865 Hop . | . . . Pick Up 17 | . 14 3 Fast Attach 8 | . 6 2 Attach 8 | . . 8 Detach . | . . . Swap 10 | . 4 6 Drop 8 | 2 5 1 Fire 89 | . 33 56 Melee 4 | . . 4 Ram . | . . . Kick 5 | . 5 . Crush . | . . . Escape Stasis . | . . . Rewire . | . . . Trap . | . . . Miscellaneous . | . . . Route ------- -11/Scrapyard -10/Materials (discovered 6 exits: [*Mat x3] / *Min x2 / [*Sub]) -10/Subcaves (discovered 2 exits: [*Mat x2]) History --------- Turn | Location | Event 3 | -11/Scrapyard | Discovered new exit (range 0) 3 | -11/Scrapyard | Entered Materials 41 | -10/Materials | Discovered new exit (range 15) 41 | -10/Materials | Discovered new exit (range 18) 214 | -10/Materials | Discovered new exit (range 10) 290 | -10/Materials | Discovered new exit (range 10) 304 | -10/Materials | Build established: Mutant 460 | -10/Materials | Discovered new exit (range 16) 503 | -10/Materials | Discovered new exit (range 12) 684 | -10/Materials | Identified exit to Mines 1172 | -10/Materials | Repaired Aluminum Leg 1226 | -10/Materials | Repaired Corrupted Lgt. Nuclear Core 1253 | -10/Materials | Repaired Aluminum Leg 1280 | -10/Materials | Repaired Assault Rifle 1308 | -10/Materials | Repaired Aluminum Leg 1335 | -10/Materials | Repaired Mining Claw 1362 | -10/Materials | Repaired Lgt. Armor Plating 1749 | -10/Materials | Entered Subcaves 1764 | -10/Subcaves | Discovered new exit (range 14) 1800 | -10/Subcaves | A swath of the cavern ceiling suddenly collapsed 1845 | -10/Subcaves | Ambushed by swarm of Subdwellers 1889 | -10/Subcaves | Lost 4 allies 1935 | -10/Subcaves | Lost 4 parts (1p1n1u1w) 2031 | -10/Subcaves | Learned location of Zion (-7) 2031 | -10/Subcaves | Met a Zionite searching for "candidates" 2136 | -10/Subcaves | Learned location of Storage (-9) 2164 | -10/Subcaves | Core integrity fell below 50% 2202 | -10/Subcaves | Discovered new exit (range 6) 2250 | -10/Subcaves | Ambushed by Subdwellers from Twisted Machinery 3033 | -10/Subcaves | A swath of the cavern ceiling suddenly collapsed 3577 | -10/Subcaves | Disturbed a concealed Subdweller 3589 | -10/Subcaves | Core integrity fell below 20% 3608 | -10/Subcaves | Destroyed by QP-QMQ(R) with Subdweller Machine Gun Last Messages --------------- 02721_ 6Y-B2H(u) destroyed. 02738_ TR-3H6(R): "MADSUB!" 02745_ Lgt. Angular Momentum Engine destroyed. 02749_ TR-3H6(R) misfires. 02753_ Sub. Power Source fried. 02753_ Sub. Machine Gun fried. 02753_ TR-3H6(R) destroyed. 02779_ Acquired 10 matter. 03020_ Subatomizers dissect the Sub. Monowheel. A swath of the cavern ceiling suddenly collapses. 03339_ HK-QMS(u) deconstructs Twisted Machinery. 03577_ BX-J46(R) angrily emerges from the Twisted Machinery. 03578_ BX-J46(R): "WORD!" 03584_ Aluminum Leg destroyed. 03590_ Carbon-fiber Leg destroyed. 03597_ BX-J46(R) affixes Scrap Shield Fragment to Scrap Shield. 03605_ BX-J46(R) IFF system glitched. 03606_ EM Pulse Gun destroyed. 03607_ Aluminum Leg destroyed. Map ----- +----------------------------------------------------+ | ????????????????????????????????????????????###### | | ???????????????????????????????????????????## ## | | ???????????????????????????????????????????# ## | | ???????????????????????????????????????????# ## | | ?????????????????????????????????????####### #? | | ???????????????????????????????????### ## | | ??????????????????????????????????## | | ??????????????????????????????????# ### # | | ??????????????????????????????????# ### # | | ??????????????????????????????????# ## | | ??????????????????????????????????## | | ???????????????????????##??????????# | | ???????????????????????#$ "????????# | | ??????????????????????#$ "#?????## ## | | ??????????????????????# $ ##????# ### | | ??????????????????????# <######" #?# | | ??????????????????????# $ ## #" #?# ## | | ??????????????????????#$ $ ## #?# ## | | ??????????????????????# $